Cogmind - Beta 16 @@@ ROGUE MODE // 2025.11.23 @ 19:22:49 Player: Vriska Result: Destroyed by S-27 Virus with Autogun Performance ------------- Evolutions (4) 2000 Regions Visited (6) 1200 Robots Destroyed (67) 335 Value Destroyed (1997) 1997 Prototype IDs (1) 20 Alien Tech Used (0) 0 Bonus (500) 500 TOTAL SCORE: 6052 Bonus ------- Entered DSFs 500 Cogmind --------- Core Integrity 0/850 Matter 127/300 Energy 100/100 System Corruption 1% Temperature Cool (0) Movement Core (50) Location -6/Factory Parts ------- > --- POWER (2) -------- (None) > --- PROPULSION (4) --- (None) > --- UTILITY (5) ------ Visual Processing Unit Advanced Visual Processing Unit Advanced Signal Interpreter Improved Targeting Computer Cloaking Device > --- WEAPON (4) ------- Spear > --- INVENTORY (5) ---- Light Nuclear Core Light Angular Momentum Engine Transport Network Coupler Long-range Missile Launcher Peak State ------------ > --- POWER ------------ Heavy Ion Engine > --- PROPULSION ------- Improved Medium Treads > --- UTILITY ---------- Visual Processing Unit Advanced Visual Processing Unit Improved Targeting Computer Shield Generator Improved Hacking Suite > --- WEAPON ----------- Light Assault Rifle Coil Gun Heavy Machine Gun Heavy Flak Cannon > --- INVENTORY -------- Light Nuclear Core Terrain Scan Processor Transport Network Coupler Powered Armor [Rating: 39] Favorites ----------- Power Heavy Ion Engine Engine Heavy Ion Engine Power Core Nuclear Core Propulsion Light Treads Treads Light Treads Hover Unit Gravmag System Utility Improved Targeting Computer Device Shield Generator Storage Small Storage Unit Processor Improved Targeting Computer Hackware Improved Hacking Suite Protection Core Shielding Weapon Light Assault Rifle Ballistic Gun Light Assault Rifle Ballistic Cannon Heavy Flak Cannon Piercing Weapon Spear Build | -11 -10 -9 -8 -7 -7 -6 ------- Run | Yrd Mat Mat Mat Fac DSF Fac Slots Evolved 8 | . . 2 2 2 . 2 Power 1 | . . . . 1 . . Propulsion 2 | . . . . . . 2 Utility 3 | . . . 2 1 . . Weapon 2 | . . 2 . . . . Parts Attached 42 | 6 1 7 14 1 3 10 Power 4 | 1 1 . 2 . . . Engine 3 | 1 1 . 1 . . . Core 1 | . . . 1 . . . Reactor . | . . . . . . . Propulsion 8 | 2 . . 3 . 2 1 Treads 6 | 2 . . 3 . . 1 Leg . | . . . . . . . Wheel . | . . . . . . . Hover 2 | . . . . . 2 . Flight . | . . . . . . . Utility 14 | 1 . 3 4 1 . 5 Device 3 | . . . . 1 . 2 Storage 1 | 1 . . . . . . Processor 6 | . . 1 3 . . 2 Hackware 1 | . . . . . . 1 Protection 3 | . . 2 1 . . . Artifact . | . . . . . . . Weapon 16 | 2 . 4 5 . 1 4 Energy Gun . | . . . . . . . Energy Cannon . | . . . . . . . Ballistic Gun 12 | 2 . 4 4 . 1 1 Ballistic Cannon 3 | . . . 1 . . 2 Launcher . | . . . . . . . Special Weapon . | . . . . . . . Impact Weapon . | . . . . . . . Slashing Weapon . | . . . . . . . Piercing Weapon 1 | . . . . . . 1 Special Melee Weapon . | . . . . . . . Unidentified Prototypes 1 | . . . 1 . . . Parts Lost 26 | . . 1 10 . 2 13 Power 3 | . . . 1 . . 2 Propulsion 3 | . . . 2 . . 1 Utility 7 | . . . 3 . . 4 Weapon 13 | . . 1 4 . 2 6 Highest Loss Streak 9 | . . 1 3 . 2 9 To Critical Strikes . | . . . . . . . Average Backups 3 | 1 2 2 4 3 4 3 Power 1 | . 1 2 . 1 2 1 Propulsion . | . . . . . . . Utility 1 | . . . 2 2 2 2 Weapon . | . 1 . . . . . Tool/Special . | . . . . . . . Unused Backups 11 | . . 1 3 . . 7 Power 4 | . . . 1 . . 3 Propulsion 1 | . . . 1 . . . Utility 5 | . . 1 1 . . 3 Weapon 1 | . . . . . . 1 Tool/Special . | . . . . . . . Average Slot Usage (%) 74 | . 85 90 90 83 72 56 Engine 6 | . 14 11 5 7 7 4 Core 1 | . . . 3 3 . 1 Treads 11 | . 28 22 16 7 3 3 Storage 2 | . 14 8 . . . . Processor 15 | . . 5 16 23 23 19 Hackware 1 | . . . . . . 3 Protection 5 | . . 2 15 7 7 2 Ballistic Gun 22 | . 28 41 26 23 19 12 Ballistic Cannon 4 | . . . 6 7 2 5 Peak Build Rating 39 | 6 6 12 24 29 28 39 Average Rating 20 | 4 6 8 20 25 22 27 On Entrance 13 | . 6 6 12 23 22 27 Avg Prop Armor Cover (%) . | . . . . . . . Naked Turns . | . . . . . . . Heaviest Build 33 | 12 14 20 27 30 22 33 Greatest Support 44 | 40 40 40 44 22 22 30 Greatest Overweight (x) 6 | . . . 1 1 1 6 Average Overweight (x) . | . . . . . . . Largest Inventory Capacity 8 | 8 8 8 5 5 5 5 Average Capacity 5 | 7 8 7 5 5 5 5 Most Carried 6 | 3 4 6 5 4 5 5 Average Carried 3 | 1 2 2 4 3 4 3 Final Capacity 8 | 8 8 5 5 5 5 5 Final Carried 5 | 2 4 5 5 4 4 4 Class Distribution -------------------- 37% | Gunner 33% | Scavenger-Gunner 26% | Mutant Dominant Class ---------------- Mutant | -10/Materials Gunner | -9/Materials Gunner | -8/Materials Scavenger-Gunner | -7/Factory Scavenger-Gunner | -7/DSF Scavenger-Gunner | -6/Factory Resources | -11 -10 -9 -8 -7 -7 -6 ----------- Run | Yrd Mat Mat Mat Fac DSF Fac Matter Collected 1794 | 263 147 156 837 50 3 338 Remotely . | . . . . . . . Salvage Created 1902 | . 201 293 938 50 65 355 Parts 136 | . 13 29 68 1 4 21 Haulers Intercepted 1 | . . . 1 . . . Recyclers Shooed 1 | . . . 1 . . . Parts Field Recycled . | . . . . . . . Retrieved Matter . | . . . . . . . Parts Self-Destructed . | . . . . . . . Prevented . | . . . . . . . Parts Restored . | . . . . . . . Kills | -11 -10 -9 -8 -7 -7 -6 ------- Run | Yrd Mat Mat Mat Fac DSF Fac Combat Hostiles Destroyed 56 | . 6 13 24 . 1 12 Melee 1 | . . . . . . 1 Guns 39 | . 6 13 15 . 1 4 Cannons 14 | . . . 9 . . 5 AOE 2 | . . . . . . 2 Classes Destroyed 13 | . 2 2 6 1 1 1 Worker 3 | . . . 3 . . . Builder 2 | . . . 2 . . . Hauler 1 | . . . 1 . . . Recycler 1 | . . . . 1 . . Mechanic 1 | . . . 1 . . . Operator 2 | . . . 1 . . 1 Watcher 1 | . . . 1 . . . Swarmer 22 | . 2 9 7 . . 4 Grunt 21 | . 4 2 12 . . 3 Duelist 1 | . . 1 . . . . Sentry 9 | . . 1 5 . . 3 Specialist 1 | . . . . . 1 . Programmer 2 | . . . . . . 2 Best Kill Streak 10 | . 4 5 10 1 1 4 Combat Bots Only 7 | . 4 5 7 . 1 3 Max Kills in Single Turn 2 | . 1 2 2 1 1 2 Gunslinging 1 | . . 1 . . . . Exploded 2 | . . . . . . 2 Melee 1 | . . . . . . 1 Uniques/NPCs Destroyed . | . . . . . . . Combat | -11 -10 -9 -8 -7 -7 -6 -------- Run | Yrd Mat Mat Mat Fac DSF Fac Hostile Shots Fired 527 | . 38 52 127 . 33 277 Missed 202 | . 16 15 40 . 13 118 Hits 325 | . 22 37 87 . 20 159 Melee 2 | . . 2 . . . . Projectile 323 | . 22 35 87 . 20 159 Critical Strikes 7 | . . . 5 . 1 1 Damage Taken 4177 | . 253 383 1222 . 315 2004 Core 1125 | . 69 58 127 . 17 854 Absorbed by Shields 232 | . . . . . . 232 Redirected to Shielding 34 | . . . 28 . 2 4 Core Remaining (%) 86 | 100 72 85 76 . 97 . Volleys Fired 146 | . 23 24 55 1 3 40 Largest 4 | . 2 4 4 4 2 4 Hottest 124 | . 40 80 103 103 43 124 Shots Fired 433 | . 46 94 184 4 6 99 Gun 346 | . 46 94 138 3 6 59 Cannon 87 | . . . 46 1 . 40 Launcher . | . . . . . . . Special . | . . . . . . . Kinetic 433 | . 46 94 184 4 6 99 Thermal . | . . . . . . . Explosive . | . . . . . . . Electromagnetic . | . . . . . . . Robot Hit Streak 12 | . 5 7 12 5 6 11 Robot Miss Streak 6 | . 2 5 5 3 1 6 Penetration Max 1 | . . . . . . 1 Secondary Targets 8 | . 2 5 1 . . . Max Gunslinging Chain 1 | . 1 1 1 . . . Shots Hit Robots 276 | . 30 46 126 2 5 67 Core Hits 170 | . 13 23 94 3 2 35 Critical Kills 1 | . . 1 . . . . Critical Parts Destroyed 3 | . . . 2 . . 1 Critical Strikes 5 | . . 1 2 . . 2 Destroy 4 | . . 1 2 . . 1 Blast 1 | . . . . . . 1 Melee Attacks 5 | . . . . . . 5 Impact . | . . . . . . . Slashing . | . . . . . . . Piercing 5 | . . . . . . 5 Sneak Attacks . | . . . . . . . Combat Hostiles . | . . . . . . . Follow-up Attacks . | . . . . . . . Damage Inflicted 5323 | . 390 520 2145 41 49 2178 Guns 2937 | . 390 520 1278 9 49 691 Cannons 1720 | . . . 867 32 . 821 Explosions 577 | . . . . . . 577 Melee 89 | . . . . . . 89 Ramming . | . . . . . . . Kinetic 4657 | . 390 520 2145 41 49 1512 Thermal . | . . . . . . . Explosive 577 | . . . . . . 577 Electromagnetic . | . . . . . . . Impact . | . . . . . . . Slashing . | . . . . . . . Piercing 89 | . . . . . . 89 Highest Corruption 1 | . . . . . . 1 Average Corruption 1 | . . . . . . 1 Corruption Purged . | . . . . . . . Corruption Blocked . | . . . . . . . Effects 3 | . . . . . . 3 Message Errors 2 | . . . . . . 2 Alerts 1 | . . . . . . 1 Overload Shots . | . . . . . . . Overflow Damage 57 | . . . . . . 57 Projectiles 3 | . . . . . . 3 Explosions 40 | . . . . . . 40 Melee 14 | . . . . . . 14 Knockbacks 16 | . . . 7 1 . 8 Impact . | . . . . . . . Kinetic 15 | . . . 6 1 . 8 Secondary 1 | . . . 1 . . . Self-Inflicted Damage 92 | . . . . . . 92 Shots 1 | . . . . . . 1 Rammed 1 | 1 . . . . . . Targets Rammed 1 | 1 . . . . . . Kicked . | . . . . . . . Crushed . | . . . . . . . Highest Temperature 202 | . 10 42 202 18 . 156 Average Temperature 53 | . 4 19 60 12 . 73 Received Heat Transfer 1018 | . 129 42 504 . 18 325 Siege Activations . | . . . . . . . Martial Activations . | . . . . . . . Shielding Activations . | . . . . . . . Robots Disrupted . | . . . . . . . Combat Hostiles . | . . . . . . . Robots Corrupted . | . . . . . . . Combat Hostiles . | . . . . . . . Parts Fried . | . . . . . . . Impact Corruptions . | . . . . . . . Robots Melted . | . . . . . . . Combat Hostiles . | . . . . . . . Parts Melted . | . . . . . . . Heat Transferred . | . . . . . . . Parts Sabotaged . | . . . . . . . Parts Stolen . | . . . . . . . Parts Stripped . | . . . . . . . Power Chain Reactions . | . . . . . . . Alert | -11 -10 -9 -8 -7 -7 -6 ------- Run | Yrd Mat Mat Mat Fac DSF Fac Maximum Alert Level 1 | . . 1 1 . . . Low Security (%) 91 | 100 100 92 72 100 100 100 Level 1 8 | . . 7 27 . . . Level 2 . | . . . . . . . Level 3 . | . . . . . . . Level 4 . | . . . . . . . Level 5 . | . . . . . . . High Security . | . . . . . . . Max Security . | . . . . . . . Peak Influence 306 | . 115 210 306 120 100 196 Initial 120 | . . 35 59 120 70 52 Average 78 | . 58 113 111 107 75 54 Influence Increases 1711 | . 165 310 619 10 50 557 Destroy 0b10 Robot/C 1120 | . 120 260 480 . 20 240 Destroy 0b10 Robot/NC 55 | . . . 45 5 . 5 Destroy Leader 254 | . 30 50 94 . . 80 Successful Hack 5 | . . . . 5 . . Disable Machine 30 | . . . . . . 30 Destroy Structure 37 | . . . . . . 37 Partial Spotted 15 | . 15 . . . . . Lose Combat Pursuer 195 | . . . . . 30 165 Influence Decreases 1515 | . 80 253 495 176 50 461 Entered New Map 357 | . . 50 83 146 30 48 Time Decay 904 | . 80 193 312 30 . 289 Lost Part 240 | . . 10 100 . 20 110 Purge Threat 14 | . . . . . . 14 Squads Dispatched 13 | . 1 . 1 . 1 10 Investigation 1 | . . . . . . 1 Extermination 2 | . . . . . . 2 Reinforcement 4 | . 1 . 1 . 1 1 Assault . | . . . . . . . Garrison 6 | . . . . . . 6 Intercept . | . . . . . . . Searches Triggered . | . . . . . . . Construction Impeded . | . . . . . . . Haulers Reinforced . | . . . . . . . Active Scanning Responses . | . . . . . . . Cargo Convoy Interrupts . | . . . . . . . Stealth | -11 -10 -9 -8 -7 -7 -6 --------- Run | Yrd Mat Mat Mat Fac DSF Fac Distress Signals 2 | . . . 1 . . 1 Communications Jammed . | . . . . . . . Distress Signals . | . . . . . . . Times Spotted 84 | . 9 14 27 . 4 30 Peak Tracking Total 6 | . 2 5 6 . 3 6 Tactical Retreats 8 | . . . . . 2 6 Traps | -11 -10 -9 -8 -7 -7 -6 ------- Run | Yrd Mat Mat Mat Fac DSF Fac Traps Triggered 2 | . . . 1 . . 1 Indirectly . | . . . . . . . Trap Hack Attempts . | . . . . . . . Triggered . | . . . . . . . Disarmed . | . . . . . . . Reprogrammed . | . . . . . . . Reused . | . . . . . . . Traps Extracted . | . . . . . . . Installed . | . . . . . . . Triggered . | . . . . . . . Machines | -11 -10 -9 -8 -7 -7 -6 ---------- Run | Yrd Mat Mat Mat Fac DSF Fac Machines Disabled 2 | . . . . . . 2 Max in Single Turn 1 | . . . . . . 1 Machines Repaired . | . . . . . . . Machines Dismantled . | . . . . . . . Machines Sabotaged . | . . . . . . . Overloaded Fab Kills . | . . . . . . . Hacking | -11 -10 -9 -8 -7 -7 -6 --------- Run | Yrd Mat Mat Mat Fac DSF Fac Machines Accessed 7 | . . 1 1 1 . 4 Terminals 4 | . . . 1 1 . 2 Fabricators 1 | . . . . . . 1 Repair Stations . | . . . . . . . Recycling Units 2 | . . 1 . . . 1 Scanalyzers . | . . . . . . . Garrison Access . | . . . . . . . Total Hacks 19 | . . 2 6 3 . 8 Successful 13 | . . 2 4 1 . 6 Failed 6 | . . . 2 2 . 2 Catastrophic . | . . . . . . . Database Lockouts . | . . . . . . . Manual . | . . . . . . . Terminals 14 | . . . 6 3 . 5 Fabricators 2 | . . . . . . 2 Repair Stations . | . . . . . . . Recycling Units 3 | . . 2 . . . 1 Scanalyzers . | . . . . . . . Garrison Access . | . . . . . . . Terminal Hacks 9 | . . . 4 1 . 4 Record 6 | . . . 4 . . 2 Open DSF 1 | . . . . 1 . . Alert Level 1 | . . . . . . 1 Unreport Threat 1 | . . . . . . 1 Fabricator Hacks 1 | . . . . . . 1 Network Status 1 | . . . . . . 1 Repair Station Hacks . | . . . . . . . Recycling Unit Hacks 3 | . . 2 . . . 1 Report Inventory 2 | . . 1 . . . 1 Retrieve Components 1 | . . 1 . . . . Scanalyzer . | . . . . . . . Garrison Access Hacks . | . . . . . . . Unauthorized Hacks . | . . . . . . . Terminals . | . . . . . . . Fabricators . | . . . . . . . Repair Stations . | . . . . . . . Recycling Units . | . . . . . . . Scanalyzers . | . . . . . . . Garrison Access . | . . . . . . . Data Cores Recovered . | . . . . . . . Used . | . . . . . . . Hacking Detections 3 | . . . . 1 . 2 Full Trace Events 1 | . . . . . . 1 Feedback Events . | . . . . . . . Feedback Blocked . | . . . . . . . Robot Schematics Acquired . | . . . . . . . Robots Built . | . . . . . . . Authchips . | . . . . . . . Time . | . . . . . . . Total Robot Build Rating . | . . . . . . . Part Schematics Acquired . | . . . . . . . Parts Built . | . . . . . . . Authchips . | . . . . . . . Time . | . . . . . . . Total Part Build Rating . | . . . . . . . Part Studies Acquired . | . . . . . . . Parts Repaired . | . . . . . . . Time . | . . . . . . . Parts Recycled . | . . . . . . . Recycled Matter . | . . . . . . . Retrieved Matter . | . . . . . . . Retrieved Components 2 | . . 2 . . . . Parts Scanalyzed . | . . . . . . . Part Schematics Acquired . | . . . . . . . Parts Damaged . | . . . . . . . Bothacking | -11 -10 -9 -8 -7 -7 -6 ------------ Run | Yrd Mat Mat Mat Fac DSF Fac Used RIF Installer . | . . . . . . . Robots Hacked . | . . . . . . . Non-combat . | . . . . . . . Combat . | . . . . . . . Robot Hacks Applied . | . . . . . . . Relay Couplers Released . | . . . . . . . Fabnet Peak Effective % . | . . . . . . . Robots Rewired . | . . . . . . . Allies Hacked . | . . . . . . . Hacks Repelled . | . . . . . . . Allies | -11 -10 -9 -8 -7 -7 -6 -------- Run | Yrd Mat Mat Mat Fac DSF Fac Total Allies . | . . . . . . . Largest Group . | . . . . . . . Highest-Rated Group . | . . . . . . . Highest-Rated Ally . | . . . . . . . Total Orders . | . . . . . . . Ally Attacks . | . . . . . . . Total Damage . | . . . . . . . Kills . | . . . . . . . Allies Corrupted . | . . . . . . . Allies Melted . | . . . . . . . Intel | -11 -10 -9 -8 -7 -7 -6 ------- Run | Yrd Mat Mat Mat Fac DSF Fac Active Infowar (turns) 1517 | . . . 159 76 97 1185 Optics 1517 | . . . 159 76 97 1185 Cloaking 2 | . . . . . . 2 Robot Analysis Total . | . . . . . . . Derelict Logs Recovered . | . . . . . . . Drone Launches . | . . . . . . . Drone Recoveries . | . . . . . . . Exploration | -11 -10 -9 -8 -7 -7 -6 ------------- Run | Yrd Mat Mat Mat Fac DSF Fac Turns Passed 2760 | 73 211 417 701 76 97 1185 Spaces Moved 1522 | 40 87 200 337 41 97 720 Core 287 | 4 . . . . . 283 Treads 1089 | 36 87 200 337 41 31 357 Legs . | . . . . . . . Wheels . | . . . . . . . Hover 146 | . . . . . 66 80 Flight . | . . . . . . . Fastest Speed 50 | 50 160 160 145 145 56 50 Average Speed 143 | 149 160 160 146 172 85 141 Slowest Speed 350 | 160 160 160 240 225 145 350 Overloaded Moves . | . . . . . . . Propulsion Burnouts . | . . . . . . . Robots Hopped . | . . . . . . . Potential Cave-ins . | . . . . . . . Cave-ins Triggered . | . . . . . . . Exploration Rate (%) 28 | 5 27 25 31 2 91 19 Regions Visited 6 Branch Regions . Pre-discovered Areas . | . . . . . . . Known Exits Taken 1 | . . . . 1 . . Unknown Exits Taken 4 | 1 1 1 1 . . . Scrap Searched . | . . . . . . . Spaces Dug 1 | . . . . . . 1 Terrain Destroyed 36 | . . . . . . 36 Melee . | . . . . . . . Projectile 4 | . . . . . . 4 AOE 32 | . . . . . . 32 Terrain Rammed . | . . . . . . . Walls Destroyed . | . . . . . . . Machines Disabled . | . . . . . . . Actions | -11 -10 -9 -8 -7 -7 -6 --------- Run | Yrd Mat Mat Mat Fac DSF Fac Total 1806 | 50 112 248 431 45 105 815 Wait 39 | . . 8 5 . . 26 Move 1516 | 39 86 199 336 40 96 720 Hop . | . . . . . . . Pick Up 33 | 3 2 6 13 . 1 8 Fast Attach 21 | 5 . 2 5 . 3 6 Attach 22 | 1 . 5 9 2 . 5 Detach 2 | . . 1 . 1 . . Swap 3 | 1 1 . 1 . . . Drop 18 | . . 3 7 1 2 5 Fire 146 | . 23 24 55 1 3 40 Melee 5 | . . . . . . 5 Ram . | . . . . . . . Kick . | . . . . . . . Crush 1 | 1 . . . . . . Escape Stasis . | . . . . . . . Rewire . | . . . . . . . Trap . | . . . . . . . Miscellaneous . | . . . . . . . Route ------- -11/Scrapyard -10/Materials -9/Materials -8/Materials -7/Factory -7/DSF -6/Factory (discovered 1 exit: [*Fac]) History --------- Turn | Location | Event 11 | -11/Scrapyard | Discovered new exit (range 15) 74 | -11/Scrapyard | Entered Materials 199 | -10/Materials | Discovered new exit (range 15) 285 | -10/Materials | Entered another Materials area 285 | -9/Materials | Evolved 2 slots: Weapon x2 597 | -9/Materials | Build established: Gunner 666 | -9/Materials | Discovered new exit (range 5) 702 | -9/Materials | Entered another Materials area 702 | -8/Materials | Evolved 2 slots: Utility x2 1166 | -8/Materials | Lost 3 parts (1u2w) 1243 | -8/Materials | Destroyed 7 combat bots 1395 | -8/Materials | Discovered new exit (range 5) 1403 | -8/Materials | Entered Factory 1403 | -7/Factory | Evolved 2 slots: Power x1, Utility x1 1478 | -7/Factory | Identified exit to DSF 1479 | -7/Factory | Entered DSF 1506 | -7/DSF | Additional patrols routed to DSF 1566 | -7/DSF | Discovered new exit (range 16) 1576 | -7/DSF | Entered Factory 1576 | -6/Factory | Evolved 2 slots: Propulsion x2 1609 | -6/Factory | Discovered new exit (range 6) 1863 | -6/Factory | Build established: Scavenger-Gunner 2015 | -6/Factory | Garrison activated, responded to threat 2308 | -6/Factory | Found Powered Armor 2316 | -6/Factory | Build established: Gunner 2409 | -6/Factory | Core integrity fell below 50% 2418 | -6/Factory | Lost 9 parts (1p1n3u4w) 2685 | -6/Factory | Build established: Mutant 2750 | -6/Factory | Core integrity fell below 20% 2761 | -6/Factory | Destroyed by S-27 Virus with Autogun Last Messages --------------- U-05 Engineer lays Concrete. Acquired 17 matter. U-05 Engineer lays Concrete. Acquired 21 matter. K-01 Serf collects debris. Acquired 61 matter. U-05 Engineer lays Concrete. K-01 Serf collects debris. U-05 Engineer lays Concrete. U-05 Engineer builds a Wall. K-01 Serf collects debris. U-05 Engineer destroyed. Acquired Adv. Signal Interpreter. K-01 Serf collects debris. Magnetic Acceleration Cannon destroyed. U-05 Engineer lays Concrete. Acquired Cloaking Device. Acquired Spear. Destroyed Lgt. Nuclear Core. S-27 Virus destroyed. Map ----- +----------------------------------------------------+ | ?????????????????????????????????????????????????? | | ?????????????????????????????????????????????????? | | ?????????????????????????????????????????????????? | | ?????????????????????????????????????????????????? | | ?????????????????????????????????????????????????? | | ?????????????????????????????????????????????????? | | ?????????????????????????????????????????????????? | | ?????????????????????????????????????????????????? | | ?????????????????????????????????????????????????? | | ?????????????????????????????????????????????????? | | ?????????????????????????????????????????????????? | | ?????????????????????????????????????????????????? | | ?????????????????????????????????????????????????? | | ?????????????????????????????????????????????????? | | ?????????????????????????????????????????????????? | | ?????????????????????????????????????????????????? | | ?????????????????????????????????????????????????? | | ?????????????????????????????????????????????????? | | ?????????????????????????????????????????????????? | | ?????????????????????????????????????????????????? | | ?????????????????????????????????????????????????? | | ?????????????????????????????????????????????????? | | ??##?????????????????????????????????????????????? | | ### ???????????????????????????????????????????? | | ####################?????????????????????? | | " t s @%#????#????????????????? | | ### ###########s#??? ????????????????? | | ??????????# #?# #??? ????????????????? | | ??????????# #?# #??? ????????????????? | | ??????????#### #?# ! #??? ????????????????? | | ?????????????# ### #??? #????????????????? | | ?????????????# # """ """ #??? #????????????????? | | ?????????????# + """ """ #??? #????????????????? | | ?????????????# # """ """ #??? #????????????????? | | ?????????????# # #??? #????????????????? | | ????????????## ####/######### #????????????????? | | ????????????# ###########T #???? | | ????????????# ????? | | ???########?# ???? | | ???# """" #?# ???????? | | ???#""""""#?# ##???????????????? | | ???#""F ""### ###+##### #????????????????? | | ####""" ### # ## #????????????????? | | # ## #????????????????? | | # ## #????????????????? | | """ "" ## #????????????????? | | "T" "" ## #????????????????? | | G ## #????????????????? | | | ""# ## #????????????????? | | | !! ""# ## #????????????????? | +----------------------------------------------------+ Best States ------------- Heat Dissipation 37 Energy Generation 23 Energy Capacity 420 Matter Stores 300 Matter Capacity 300 Sight Range 20 Terrain Scan Density 10 Armor Coverage 225 Core Shielding 20 Evasion (%) 53 Targeting Accuracy 12 Recoil Reduction 2 Offensive Hacking 12 Item Schematics ----------------- None Robot Schematics ------------------ None Fabricated ------------ Nothing Repaired ---------- Nothing Studied --------- None Alien Tech Used ----------------- None Achievements -------------- Bumper Bots Ghost 'Em Heavy Suspicion Window Shopping Challenges ------------ None Game ------ Seed MetafiberStormTrident Manual? 0 Play Time 00:34:19 Cumulative 18.0 hours Start 2025.11.23 @ 18:38:37 End 2025.11.23 @ 19:22:49 Sessions 1 Manual Loads 0 Difficulty Rogue Special Mode None Game No. 36 Rogue 36 Adventurer 0 Explorer 0 Win Type - Total 0 Types 0/0/0/0/0/0/0/0/0/0 Lore% 12 Gallery% 18 Achievement% 13 Wizard Run 0 Options --------- Layout 0 ASCII 0 Keyboard 0 Movement Numpad Keybinds 0 Fullscreen 1 Font 18/SmallcapsGlow Map View 76x50 Zoom Use 0% Tactical HUD 0 Map Filters NONE Filters NONE Steam 1 RUN: 6e69da97-db2e-45d3-908a-5b6304e654b8